fUSD/lending_fUSD_20241104
["ID","MTS","AMOUNT","RATE_DAILY","PERIOD"]
[341238914,1730711466734,-698.55,0.00043148,2]
[341238915,1730711466743,-500.0,0.00043148,2]
[341238916,1730711466752,-2000.0,0.00043148,2]
[341238917,1730711466761,-500.0,0.00043148,2]
[341238918,1730711466774,-500.0,0.00043148,2]
[341238919,1730711466783,-500.0,0.00043148,2]
[341238920,1730711466792,-535.09452755,0.00043148,2]
[341238921,1730711466801,-500.0,0.00043148,2]
[341238922,1730711466810,-500.0,0.00043148,2]
[341238923,1730711466819,-541.73517825,0.00043148,2]
[341238924,1730711466828,-500.0,0.00043148,2]
[341238925,1730711466837,-500.0,0.00043149,2]
[341238926,1730711466846,-500.0,0.00043149,2]
[341238927,1730711466856,-500.0,0.00043149,2]
[341238928,1730711466865,-500.0,0.00043149,2]
[341238929,1730711466877,-521.46167307,0.00043149,2]
[341238930,1730711466886,-500.0,0.00043149,2]
[341238931,1730711466895,-500.0,0.00043149,2]
[341238932,1730711466906,-273.08,0.00043151,2]
[341238933,1730711466918,-336.55319298,0.00043183,2]
[341238934,1730711466927,-500.0,0.00043183,2]
[341238935,1730711466936,-1533.19,0.00043183,2]
[341238936,1730711466946,-500.0,0.00043183,2]
[341238937,1730711466956,-500.0,0.00043183,2]
[341238938,1730711466965,-500.0,0.00043183,2]
[341238939,1730711466975,-691.73,0.00043183,2]
[341238940,1730711466983,-500.0,0.00043183,2]
[341238941,1730711466993,-635.87,0.00043183,2]
[341238942,1730711467002,-500.0,0.00043183,2]
[341238943,1730711467011,-500.0,0.00043183,2]
[341238944,1730711467022,-150.0,0.00043234,30]
[341238945,1730711467031,-150.0,0.00043259,2]
[341238946,1730711467040,-500.0,0.00043262,2]
[341238947,1730711467050,-500.0,0.00043262,2]
[341238948,1730711467060,-769.94,0.00043262,2]
[341238949,1730711467072,-500.0,0.00043262,2]
[341238950,1730711467082,-500.0,0.00043262,2]
[341238951,1730711467093,-503.82,0.00043262,2]
[341238952,1730711467103,-660.29,0.00043262,2]
[341238953,1730711467113,-500.0,0.00043262,2]
[341238954,1730711467122,-500.0,0.00043262,2]
[341238955,1730711467132,-652.9,0.00043262,2]
[341238956,1730711467142,-500.0,0.00043262,2]
[341238957,1730711467151,-500.0,0.00043262,2]
[341238958,1730711467160,-500.0,0.00043262,2]
[341238959,1730711467170,-497.77345969,0.00043262,2]
[341238960,1730711467180,-1934.72,0.00043262,2]
[341238961,1730711467190,-419.97547967,0.00043262,2]
[341238962,1730711467199,-500.0,0.00043262,2]
[341238963,1730711467208,-500.0,0.00043262,2]
[341238964,1730711467218,-1674.51,0.00043262,2]
[341238965,1730711467227,-684.44,0.00043287,2]
[341238966,1730711467236,-500.0,0.00043287,2]
[341238967,1730711467245,-3994.7,0.00043287,2]
[341238968,1730711467256,-1882.57,0.00043287,2]
[341238969,1730711467265,-500.0,0.00043287,2]
[341238970,1730711467275,-1176.28,0.00043287,2]
[341238971,1730711467285,-5855.7,0.00043287,2]
[341238972,1730711467295,-1152.43,0.00043287,2]
[341238973,1730711467304,-1681.01,0.00043287,2]
[341238974,1730711467313,-1398.78,0.00043287,2]
[341238975,1730711467323,-1238.48,0.00043287,2]
[341238976,1730711467331,-1242.24,0.00043287,2]
[341238977,1730711467340,-3905.42,0.00043287,2]
[341238978,1730711467349,-200.0,0.0004329,7]
[341238979,1730711467359,-449.0,0.000433,2]
[341238980,1730711467368,-183.47268948,0.000433,2]
[341238981,1730711467377,-551.0,0.000433,2]
[341238982,1730711467387,-1542.90086483,0.00043322,2]
[341238983,1730711467395,-1131.29642228,0.0004335,10]
[341238984,1730711467405,-1038.73915382,0.0004335,10]
[341238985,1730711467415,-270.67695368,0.00043352,2]
[341238986,1730711467423,-500.0,0.00043357,2]
[341238987,1730711467498,-201.94887044,0.00043357,2]
[341238988,1730711467508,-500.0,0.00043357,2]
[341238989,1730711467518,-500.0,0.00043357,2]
[341238990,1730711467532,-500.0,0.00043357,2]
[341238991,1730711467541,-500.0,0.00043357,2]
[341238992,1730711467550,-554.57166927,0.00043357,2]
[341238993,1730711467559,-500.0,0.00043357,2]
[341238994,1730711467569,-250.0,0.00043357,2]
[341238995,1730711467577,-500.0,0.00043357,2]
[341238996,1730711467586,-338.44625376,0.00043357,2]
[341238997,1730711467595,-500.0,0.00043357,2]
[341238998,1730711467604,-500.0,0.00043357,2]
[341238999,1730711467613,-500.0,0.00043357,2]
[341239000,1730711467622,-500.0,0.00043357,2]
[341239001,1730711467632,-500.0,0.00043357,2]
[341239002,1730711467641,-500.0,0.00043357,2]
[341239003,1730711467649,-500.0,0.00043357,2]
[341239004,1730711467658,-500.0,0.00043357,2]
[341239005,1730711467668,-500.0,0.00043357,2]
[341239006,1730711467677,-150.0,0.00043357,2]
[341239007,1730711467686,-500.0,0.00043357,2]
[341239008,1730711467695,-500.0,0.00043357,2]
[341239009,1730711467704,-500.0,0.00043357,2]
[341239010,1730711467713,-308.29904301,0.00043357,2]
[341239011,1730711467722,-500.0,0.00043357,2]
[341239012,1730711467731,-500.0,0.00043357,2]
[341239013,1730711467740,-500.0,0.00043357,2]
[341239014,1730711467750,-500.0,0.00043357,2]
[341239015,1730711467759,-534.22,0.00043357,2]
[341239016,1730711467771,-500.0,0.00043357,2]
[341239017,1730711467779,-500.0,0.00043357,2]
[341239018,1730711467788,-500.0,0.00043357,2]
[341239019,1730711467797,-500.0,0.00043357,2]
[341239020,1730711467806,-500.0,0.00043357,2]
[341239021,1730711467815,-1016.33,0.00043357,2]
[341239022,1730711467824,-1154.26,0.00043357,2]
[341239023,1730711467833,-500.0,0.00043357,2]
[341239024,1730711467842,-500.0,0.00043357,2]
[341239025,1730711467851,-10956.67,0.00043357,2]
[341239026,1730711467861,-677.22,0.00043357,2]
[341239027,1730711467871,-377.1200253,0.00043357,2]
[341239028,1730711467880,-500.0,0.00043357,2]
[341239029,1730711467889,-500.0,0.00043357,2]
[341239030,1730711467898,-500.0,0.00043357,2]
[341239031,1730711467908,-500.0,0.00043357,2]
[341239032,1730711467917,-500.0,0.00043357,2]
[341239033,1730711467926,-500.0,0.00043357,2]
[341239034,1730711467935,-500.0,0.00043357,2]
[341239035,1730711467944,-476.34520273,0.00043357,2]
[341239036,1730711467953,-1011.7,0.00043357,2]
[341239037,1730711467963,-343.84125376,0.00043357,2]
[341239038,1730711467972,-500.0,0.00043357,2]
[341239039,1730711467981,-156.89932664,0.00043357,2]
[341239040,1730711467991,-500.0,0.00043357,2]
[341239041,1730711468000,-500.0,0.00043357,2]
[341239042,1730711468009,-500.0,0.00043357,2]
[341239043,1730711468020,-617.59221733,0.00043357,2]
[341239044,1730711468030,-500.0,0.00043357,2]
[341239045,1730711468039,-150.0,0.00043421,30]
[341239046,1730711468048,-682.23,0.00043422,2]
[341239047,1730711468057,-534.5,0.00043422,2]
[341239048,1730711468067,-209.53928784,0.00043422,2]
[341239049,1730711468076,-500.0,0.00043422,2]
[341239050,1730711468087,-662.99,0.00043422,2]
[341239051,1730711468097,-500.0,0.00043422,2]
[341239052,1730711468106,-500.0,0.00043422,2]
[341239053,1730711468116,-500.0,0.00043422,2]
[341239054,1730711468125,-500.0,0.00043422,2]
[341239055,1730711468134,-500.0,0.00043422,2]
[341239056,1730711468144,-500.0,0.00043422,2]
[341239057,1730711468153,-500.0,0.00043422,2]
[341239058,1730711468163,-500.0,0.00043422,2]
[341239059,1730711468172,-500.0,0.00043422,2]
[341239060,1730711468181,-500.0,0.00043422,2]
[341239061,1730711468191,-500.0,0.00043422,2]
[341239062,1730711468200,-500.0,0.00043422,2]
[341239063,1730711468209,-500.0,0.00043422,2]
[341239064,1730711468218,-527.25284487,0.00043422,2]
[341239065,1730711468227,-500.0,0.00043422,2]
[341239066,1730711468237,-500.0,0.00043422,2]
[341239067,1730711468246,-500.0,0.00043422,2]
[341239068,1730711468256,-500.0,0.00043422,2]
[341239069,1730711468265,-310.45069142,0.00043422,2]
[341239070,1730711468276,-500.0,0.00043422,2]
[341239071,1730711468286,-500.0,0.00043422,2]
[341239072,1730711468295,-500.0,0.00043422,2]
[341239073,1730711468304,-500.0,0.00043422,2]
[341239074,1730711468314,-500.0,0.00043422,2]
[341239075,1730711468323,-500.0,0.00043422,2]
[341239076,1730711468331,-1121.32,0.00043422,2]
[341239077,1730711468341,-575.33082451,0.00043422,2]
[341239078,1730711468351,-698.55,0.00043422,2]
[341239079,1730711468360,-500.0,0.00043422,2]
[341239080,1730711468372,-2000.0,0.00043422,2]
[341239081,1730711468382,-500.0,0.00043422,2]
[341239082,1730711468391,-500.0,0.00043422,2]
[341239083,1730711468400,-500.0,0.00043422,2]
[341239084,1730711468408,-500.0,0.00043422,2]
[341239085,1730711468417,-500.0,0.00043422,2]
[341239086,1730711468427,-500.0,0.00043422,2]
[341239087,1730711468436,-159.448284,0.00043422,3]
[341239088,1730711468445,-500.0,0.00043423,2]
[341239089,1730711468454,-500.0,0.00043423,2]
[341239090,1730711468463,-500.0,0.00043423,2]
[341239091,1730711468472,-500.0,0.00043423,2]
[341239092,1730711468481,-500.0,0.00043423,2]
[341239093,1730711468491,-500.0,0.00043423,2]
[341239094,1730711468500,-160.2381907,0.00043436,2]
[341239095,1730711468509,-500.0,0.00043457,2]
[341239096,1730711468518,-1533.19,0.00043457,2]
[341239097,1730711468530,-554.52710626,0.00043457,2]
[341239098,1730711468539,-156.66486474,0.00043457,2]
[341239099,1730711468548,-500.0,0.00043457,2]
[341239100,1730711468557,-691.73,0.00043457,2]
[341239101,1730711468566,-500.0,0.00043457,2]
[341239102,1730711468576,-635.87,0.00043457,2]
[341239103,1730711468585,-500.0,0.00043457,2]
[341239104,1730711468659,-500.0,0.00043457,2]
[341239105,1730711468668,-150.0,0.00043458,30]
[341239106,1730711468678,-500.0,0.00043536,2]
[341239107,1730711468687,-500.0,0.00043536,2]
[341239108,1730711468697,-769.94,0.00043536,2]
[341239109,1730711468706,-500.0,0.00043536,2]
[341239110,1730711468715,-500.0,0.00043536,2]
[341239111,1730711468724,-503.82,0.00043536,2]
[341239112,1730711468734,-660.29,0.00043536,2]
[341239113,1730711468743,-316.4055671,0.00043536,2]
[341239114,1730711468752,-500.0,0.00043536,2]
[341239115,1730711468761,-652.9,0.00043536,2]
[341239116,1730711468771,-500.0,0.00043536,2]
[341239117,1730711468780,-500.0,0.00043536,2]
[341239118,1730711468789,-500.0,0.00043536,2]
[341239119,1730711468798,-1934.72,0.00043536,2]
[341239120,1730711468808,-324.94490734,0.00043536,2]
[341239121,1730711468817,-500.0,0.00043536,2]
[341239122,1730711468826,-1674.51,0.00043536,2]
[341239123,1730711468835,-156.0,0.00043553,7]
[341239124,1730711468844,-684.44,0.00043561,2]
[341239125,1730711468853,-601.52633884,0.00043561,2]
[341239126,1730711468863,-3994.7,0.00043561,2]
[341239127,1730711468875,-1882.57,0.00043561,2]
[341239128,1730711468884,-500.0,0.00043561,2]
[341239129,1730711468893,-1176.28,0.00043561,2]
[341239130,1730711468901,-5855.7,0.00043561,2]
[341239131,1730711468913,-1152.43,0.00043561,2]
[341239132,1730711468922,-1681.01,0.00043561,2]
[341239133,1730711468932,-1398.78,0.00043561,2]
[341239134,1730711468941,-1238.48,0.00043561,2]
[341239135,1730711468953,-1242.24,0.00043561,2]
[341239136,1730711468963,-3905.42,0.00043561,2]
[341239137,1730711468972,-788.81,0.00043562,2]
[341239138,1730711468982,-150.0,0.00043607,30]
[341239139,1730711468991,-500.0,0.00043631,2]
[341239140,1730711468999,-638.47121626,0.00043631,2]
[341239141,1730711469009,-621.07640218,0.00043631,2]
[341239142,1730711469018,-500.0,0.00043631,2]
[341239143,1730711469028,-500.0,0.00043631,2]
[341239144,1730711469037,-521.83306326,0.00043631,2]
[341239145,1730711469046,-250.0,0.00043631,2]
[341239146,1730711469055,-500.0,0.00043631,2]
[341239147,1730711469064,-500.0,0.00043631,2]
[341239148,1730711469074,-500.0,0.00043631,2]
[341239149,1730711469085,-500.0,0.00043631,2]
[341239150,1730711469095,-237.99168902,0.00043631,2]
[341239151,1730711469105,-500.0,0.00043631,2]
[341239152,1730711469114,-500.0,0.00043631,2]
[341239153,1730711469123,-500.0,0.00043631,2]
[341239154,1730711469132,-500.0,0.00043631,2]
[341239155,1730711469141,-500.0,0.00043631,2]
[341239156,1730711469150,-150.0,0.00043631,2]
[341239157,1730711469159,-500.0,0.00043631,2]
[341239158,1730711469174,-500.0,0.00043631,2]
[341239159,1730711469194,-500.0,0.00043631,2]
[341239160,1730711469210,-500.0,0.00043631,2]
[341239161,1730711469230,-500.0,0.00043631,2]
[341239162,1730711469251,-562.05442197,0.00043631,2]
[341239163,1730711469268,-511.59277262,0.00043631,2]
[341239164,1730711469287,-534.22,0.00043631,2]
[341239165,1730711469302,-500.0,0.00043631,2]
[341239166,1730711469317,-500.0,0.00043631,2]
[341239167,1730711469335,-500.0,0.00043631,2]
[341239168,1730711469355,-500.0,0.00043631,2]
[341239169,1730711469368,-500.0,0.00043631,2]
[341239170,1730711469384,-1016.33,0.00043631,2]
[341239171,1730711469399,-1154.26,0.00043631,2]
[341239172,1730711469416,-500.0,0.00043631,2]
[341239173,1730711469430,-500.0,0.00043631,2]
[341239174,1730711469444,-10956.67,0.00043631,2]
[341239175,1730711469459,-677.22,0.00043631,2]
[341239176,1730711469473,-282.59413563,0.00043631,2]
[341239177,1730711469487,-224.25580049,0.00043631,2]
[341239178,1730711469502,-500.0,0.00043631,2]
[341239179,1730711469515,-500.0,0.00043631,2]
[341239180,1730711469531,-273.88302629,0.00043631,2]
[341239181,1730711469545,-196.37635473,0.00043631,2]
[341239182,1730711469559,-498.21,0.00043631,2]
[341239183,1730711469573,-1011.7,0.00043631,2]
[341239184,1730711469588,-500.0,0.00043631,2]
[341239185,1730711469602,-500.0,0.00043631,2]
[341239186,1730711469616,-500.0,0.00043631,2]
[341239187,1730711469631,-500.0,0.00043631,2]
[341239188,1730711469644,-500.0,0.00043631,2]
[341239189,1730711469658,-166.62,0.00043639,2]
[341239190,1730711469672,-400.0,0.0004366,7]
[341239191,1730711469687,-1211.74895991,0.0004367,2]
[341239192,1730711469701,-8720.24895945,0.0004367,2]
[341239193,1730711469716,-8321.2333,0.0004367,2]
[341239194,1730711469730,-898.4111,0.0004367,2]
[341239195,1730711469744,-15674.6831,0.0004367,2]
[341239196,1730711469758,-18881.81664691,0.0004369,2]
[341239197,1730711469772,-682.23,0.00043696,2]
[341239198,1730711469786,-534.5,0.00043696,2]
[341239199,1730711469800,-500.0,0.00043696,2]
[341239200,1730711469813,-662.99,0.00043696,2]
[341239201,1730711469826,-500.0,0.00043696,2]
[341239202,1730711469841,-500.0,0.00043696,2]
[341239203,1730711469855,-369.00303081,0.00043696,2]
[341239204,1730711469869,-500.0,0.00043696,2]
[341239205,1730711469883,-500.0,0.00043696,2]
[341239206,1730711469897,-500.0,0.00043696,2]
[341239207,1730711469914,-500.0,0.00043696,2]
[341239208,1730711469928,-500.0,0.00043696,2]
[341239209,1730711469942,-500.0,0.00043696,2]
[341239210,1730711469956,-500.0,0.00043696,2]
[341239211,1730711470063,-500.0,0.00043696,2]
[341239212,1730711470072,-500.0,0.00043696,2]
[341239213,1730711470082,-500.0,0.00043696,2]
[341239214,1730711470091,-456.33146755,0.00043696,2]
[341239215,1730711470100,-500.0,0.00043696,2]
[341239216,1730711470110,-500.0,0.00043696,2]
[341239217,1730711470119,-500.0,0.00043696,2]
[341239218,1730711470129,-500.0,0.00043696,2]
[341239219,1730711470138,-427.40037269,0.00043696,2]
[341239220,1730711470148,-484.41516037,0.00043696,2]
[341239221,1730711470158,-500.0,0.00043696,2]
[341239222,1730711470169,-500.0,0.00043696,2]
[341239223,1730711470178,-500.0,0.00043696,2]
[341239224,1730711470188,-1121.32,0.00043696,2]
[341239225,1730711470197,-698.55,0.00043696,2]
[341239226,1730711470206,-574.24959526,0.00043696,2]
[341239227,1730711470215,-2000.0,0.00043696,2]
[341239228,1730711470224,-518.43328884,0.00043696,2]
[341239229,1730711470233,-500.0,0.00043696,2]
[341239230,1730711470243,-500.0,0.00043696,2]
[341239231,1730711470252,-500.0,0.00043696,2]
[341239232,1730711470261,-500.0,0.00043696,2]
[341239233,1730711470271,-500.0,0.00043696,2]
[341239234,1730711470281,-5933.82347604,0.00043696,2]
[341239235,1730711470290,-498.39635625,0.00043697,2]
[341239236,1730711470300,-500.0,0.00043697,2]
[341239237,1730711470311,-502.34534114,0.00043697,2]
[341239238,1730711470320,-501.57922579,0.00043697,2]
[341239239,1730711470330,-501.47556625,0.00043697,2]
[341239240,1730711470339,-506.11160559,0.00043697,2]
[341239241,1730711470349,-398.0,0.000437,30]
[341239242,1730711470359,-11317.35564143,0.000437,11]
[341239243,1730711470368,-1542.90086481,0.00043729,2]
[341239244,1730711470377,-500.0,0.00043731,2]
[341239245,1730711470386,-1533.19,0.00043731,2]
[341239246,1730711470395,-500.0,0.00043731,2]
[341239247,1730711470404,-691.73,0.00043731,2]
[341239248,1730711470413,-500.0,0.00043731,2]
[341239249,1730711470422,-635.87,0.00043731,2]
[341239250,1730711470431,-500.0,0.00043731,2]
[341239251,1730711470442,-500.0,0.00043731,2]
[341239252,1730711470451,-4041959.8524549,0.00043768,15]
[341239253,1730711470462,-426.09295139,0.00043768,2]
[341239254,1730711470472,-500.0,0.00043768,2]
[341239255,1730711470481,-500.0,0.00043769,2]
[341239256,1730711470490,-500.0,0.00043769,2]
[341239257,1730711470499,-209.92712719,0.00043769,2]
[341239258,1730711470508,-500.0,0.00043769,2]
[341239259,1730711470518,-500.0,0.00043769,2]
[341239260,1730711470528,-627.84737276,0.00043769,2]
[341239261,1730711470537,-542.2573596,0.00043769,2]
[341239262,1730711470547,-173484.40251959,0.0004377,120]
[341239263,1730711470556,-500.0,0.0004377,120]
[341239264,1730711470565,-500.0,0.0004377,120]
[341239265,1730711470574,-500.0,0.0004377,120]
[341239266,1730711470583,-500.0,0.0004377,120]
[341239267,1730711470592,-500.0,0.0004377,120]
[341239268,1730711470601,-500.0,0.0004377,120]
[341239269,1730711470611,-500.0,0.0004377,120]
[341239270,1730711470620,-500.0,0.0004377,120]
[341239271,1730711470630,-500.0,0.0004377,120]
[341239272,1730711470639,-500.0,0.0004377,120]
[341239273,1730711470648,-500.0,0.0004377,120]
[341239274,1730711470658,-500.0,0.0004377,120]
[341239275,1730711470668,-500.0,0.0004377,120]
[341239276,1730711470677,-500.0,0.0004377,120]
[341239277,1730711470688,-500.0,0.0004377,120]
[341239278,1730711470699,-500.0,0.0004377,120]
[341239279,1730711470708,-500.0,0.0004377,120]
[341239280,1730711470717,-500.0,0.0004377,120]
[341239281,1730711470728,-500.0,0.0004377,120]
[341239282,1730711470739,-500.0,0.0004377,120]
[341239283,1730711470750,-500.0,0.0004377,120]
[341239284,1730711470759,-500.0,0.0004377,120]
[341239285,1730711470768,-500.0,0.0004377,120]
[341239286,1730711470779,-500.0,0.0004377,120]
[341239287,1730711470788,-500.0,0.0004377,120]
[341239288,1730711470797,-500.0,0.0004377,120]
[341239289,1730711470806,-500.0,0.0004377,120]
[341239290,1730711470814,-500.0,0.0004377,120]
[341239291,1730711470823,-500.0,0.0004377,120]
[341239292,1730711470833,-500.0,0.0004377,120]
[341239293,1730711470842,-500.0,0.0004377,120]
[341239294,1730711470852,-500.0,0.0004377,120]
[341239295,1730711470861,-500.0,0.0004377,120]
[341239296,1730711470871,-500.0,0.0004377,120]
[341239297,1730711470883,-500.0,0.0004377,120]
[341239298,1730711470891,-500.0,0.0004377,120]
[341239299,1730711470901,-500.0,0.0004377,120]
[341239300,1730711470910,-500.0,0.0004377,120]
[341239301,1730711470921,-500.0,0.0004377,120]
[341239302,1730711470933,-500.0,0.0004377,120]
[341239303,1730711470943,-500.0,0.0004377,120]
[341239304,1730711470953,-500.0,0.0004377,120]
[341239305,1730711470962,-500.0,0.0004377,120]
[341239306,1730711470970,-500.0,0.0004377,120]
[341239307,1730711470979,-500.0,0.0004377,120]
[341239308,1730711470989,-500.0,0.0004377,120]
[341239309,1730711470999,-500.0,0.0004377,120]
[341239310,1730711471008,-500.0,0.0004377,120]
[341239311,1730711471017,-500.0,0.0004377,120]
[341239312,1730711471028,-500.0,0.0004377,120]
[341239313,1730711471037,-500.0,0.0004377,120]
[341239314,1730711471046,-500.0,0.0004377,120]
[341239315,1730711471055,-500.0,0.0004377,120]
[341239316,1730711471064,-500.0,0.0004377,120]
[341239317,1730711471073,-500.0,0.0004377,120]
[341239318,1730711471082,-500.0,0.0004377,120]
[341239319,1730711471091,-500.0,0.0004377,120]
[341239320,1730711471100,-500.0,0.0004377,120]
[341239321,1730711471110,-500.0,0.0004377,120]
[341239322,1730711471119,-500.0,0.0004377,120]
[341239323,1730711471129,-500.0,0.0004377,120]
[341239324,1730711471138,-500.0,0.0004377,120]
[341239325,1730711471147,-500.0,0.0004377,120]
[341239326,1730711471156,-500.0,0.0004377,120]
[341239327,1730711471165,-500.0,0.0004377,120]
[341239328,1730711471174,-500.0,0.0004377,120]
[341239329,1730711471184,-500.0,0.0004377,120]
[341239330,1730711471193,-500.0,0.0004377,120]
[341239331,1730711471202,-500.0,0.0004377,120]
[341239332,1730711471211,-500.0,0.0004377,120]
[341239333,1730711471220,-500.0,0.0004377,120]
[341239334,1730711471229,-500.0,0.00043779,2]
[341239335,1730711471239,-500.0,0.00043779,2]
[341239336,1730711471248,-509.81998122,0.00043779,2]
[341239337,1730711471257,-8042.61220473,0.0004378,120]
[341239338,1730711471266,-35089.0,0.0004378,120]
[341239339,1730711471277,-150.0,0.00043794,30]
[341239340,1730711471286,-210.57263537,0.00043798,30]
[341239341,1730711471295,-210.57263537,0.00043799,30]
[341239342,1730711471304,-152.0,0.000438,120]
[341239343,1730711471313,-387.26610409,0.000438,120]
[341239344,1730711471322,-469.82919853,0.000438,30]
[341239345,1730711471331,-162.13,0.000438,60]
[341239346,1730711471340,-365.17,0.000438,30]
[341239347,1730711471351,-879.68537588,0.000438,2]
[341239348,1730711471361,-203.2696234,0.000438,2]
[341239349,1730711471369,-374.9843381,0.000438,2]
[341239350,1730711471379,-7634.73237763,0.000438,2]
[341239351,1730711471458,-247.87546294,0.0004381,2]
[341239352,1730711471469,-500.0,0.0004381,2]
[341239353,1730711471478,-769.94,0.0004381,2]
[341239354,1730711471488,-500.0,0.0004381,2]
[341239355,1730711471498,-500.0,0.0004381,2]
[341239356,1730711471507,-503.82,0.0004381,2]
[341239357,1730711471516,-660.29,0.0004381,2]
[341239358,1730711471527,-500.0,0.0004381,2]
[341239359,1730711471537,-652.9,0.0004381,2]
[341239360,1730711471546,-500.0,0.0004381,2]
[341239361,1730711471555,-500.0,0.0004381,2]
[341239362,1730711471564,-500.0,0.0004381,2]
[341239363,1730711471573,-1934.72,0.0004381,2]
[341239364,1730711471583,-500.0,0.0004381,2]
[341239365,1730711471592,-1674.51,0.0004381,2]
[341239366,1730711471601,-10660.0,0.0004383,8]
[341239367,1730711471611,-684.44,0.00043835,2]
[341239368,1730711471619,-3994.7,0.00043835,2]
[341239369,1730711471629,-1882.57,0.00043835,2]
[341239370,1730711471639,-500.0,0.00043835,2]
[341239371,1730711471647,-1176.28,0.00043835,2]
[341239372,1730711471656,-5855.7,0.00043835,2]
[341239373,1730711471665,-1152.43,0.00043835,2]
[341239374,1730711471675,-1681.01,0.00043835,2]
[341239375,1730711471684,-2000.0,0.00043835,120]
[341239376,1730711471693,-1398.78,0.00043835,2]
[341239377,1730711471702,-1238.48,0.00043835,2]
[341239378,1730711471711,-1242.24,0.00043835,2]
[341239379,1730711471720,-3905.42,0.00043835,2]
[341239380,1730711471729,-2000.0,0.00043836,60]
[341239381,1730711471738,-2000.0,0.00043836,30]
[341239382,1730711471747,-173.82684195,0.00043868,13]
[341239383,1730711471757,-203.2696234,0.0004387,2]
[341239384,1730711471766,-203.2696234,0.0004387,2]
[341239385,1730711471779,-203.2696234,0.0004387,2]
[341239386,1730711471787,-374.9843381,0.0004387,2]
[341239387,1730711471796,-374.9843381,0.0004387,2]
[341239388,1730711471806,-374.9843381,0.0004387,2]
[341239389,1730711471815,-203.2696234,0.00043875,2]
[341239390,1730711471825,-203.2696234,0.00043875,2]
[341239391,1730711471834,-374.9843381,0.00043875,2]
[341239392,1730711471842,-374.9843381,0.00043875,2]
[341239393,1730711471851,-225.89,0.0004388,30]
[341239394,1730711471860,-150.5,0.0004389,30]
[341239395,1730711471870,-40000.0,0.00043898,7]
[341239396,1730711471880,-1926.51,0.00043899,120]
[341239397,1730711471889,-1005.0,0.000439,30]
[341239398,1730711471899,-196.0,0.000439,31]
[341239399,1730711471909,-398.0,0.000439,31]
[341239400,1730711471919,-10000.0,0.000439,30]
[341239401,1730711471929,-5000.0,0.000439,120]
[341239402,1730711471938,-14518.0,0.000439,30]
[341239403,1730711471947,-970.1731428,0.000439,120]
[341239404,1730711471956,-970.17314267,0.000439,120]
[341239405,1730711471965,-970.17314267,0.000439,120]
[341239406,1730711471975,-970.17314267,0.000439,120]
[341239407,1730711471983,-970.17314267,0.000439,120]
[341239408,1730711471993,-970.17314267,0.000439,120]
[341239409,1730711472002,-970.17314267,0.000439,120]
[341239410,1730711472011,-970.17314267,0.000439,120]
[341239411,1730711472021,-970.17314267,0.000439,120]
[341239412,1730711472031,-970.17314267,0.000439,120]
[341239413,1730711472040,-970.17314267,0.000439,120]